[Event "*** Titled Tuesday Blitz"]
[Site "Chess.com"]
[Date "2019.05.07"]
[Round "4"]
[White "Kimster98"]
[Black "tteshan"]
[Result "1-0"]
[WhiteElo "2621"]
[BlackElo "2307"]
[TimeControl "180+2"]
[EndTime "13:56:14 PDT"]
[Termination "Kimster98 won by resignation"]

1. Nf3 {[%clk 0:03:01.9]} 1... c5 {[%clk 0:02:59.1]} 2. c4 {[%clk 0:03:03.2]}
2... Nc6 {[%clk 0:02:59.7]} 3. d4 {[%clk 0:03:04.5]} 3... cxd4 {[%clk
0:02:58.9]} 4. Nxd4 {[%clk 0:03:06.4]} 4... g6 {[%clk 0:02:57.2]} 5. e4 {[%clk
0:03:06.8]} 5... Bg7 {[%clk 0:02:58.1]} 6. Be3 {[%clk 0:03:08.4]} 6... Nf6
{[%clk 0:02:57.5]} 7. Nc3 {[%clk 0:03:09.7]} 7... O-O {[%clk 0:02:56.8]} 8. Be2
{[%clk 0:03:10.6]} 8... d6 {[%clk 0:02:57]} 9. f3 {[%clk 0:03:09.5]} 9... Bd7
{[%clk 0:02:55]} 10. Qd2 {[%clk 0:03:10.2]} 10... Nxd4 {[%clk 0:02:53.2]} 11.
Bxd4 {[%clk 0:03:12.1]} 11... a5 {[%clk 0:02:53.4]} 12. b3 {[%clk 0:03:12.9]}
12... Bc6 {[%clk 0:02:54.4]} 13. O-O {[%clk 0:03:13.1]} 13... Nd7 {[%clk
0:02:53.9]} 14. Be3 {[%clk 0:03:14.5]} 14... Nc5 {[%clk 0:02:52.5]} 15. Rab1
{[%clk 0:03:15]} 15... Qb6 {[%clk 0:02:53]} 16. Rfc1 {[%clk 0:03:15.5]} 16...
Rfc8 {[%clk 0:02:52.5]} 17. Nb5 {[%clk 0:03:06.8]} 17... Bxb5 {[%clk 0:02:50.9]}
18. cxb5 {[%clk 0:03:08.7]} 18... h5 {[%clk 0:02:29.3]} 19. a3 {[%clk
0:03:05.7]} 19... Qd8 {[%clk 0:02:19.3]} 20. Qd5 {[%clk 0:03:00.5]} 20... Rab8
{[%clk 0:01:48.7]} 21. Bc4 {[%clk 0:02:54.7]} 21... Ne6 {[%clk 0:01:46.2]} 22.
Qd2 {[%clk 0:02:54.1]} 22... Ra8 {[%clk 0:01:29.5]} 23. Bd5 {[%clk 0:02:52.7]}
23... Qd7 {[%clk 0:01:25.5]} 24. a4 {[%clk 0:02:52.2]} 24... Nc5 {[%clk
0:01:08.4]} 25. Bxc5 {[%clk 0:02:52.2]} 25... e6 {[%clk 0:00:41.2]} 26. Bxe6
{[%clk 0:02:29.9]} 26... Qxe6 {[%clk 0:00:41.4]} 27. Qxd6 {[%clk 0:02:31.1]}
27... Rd8 {[%clk 0:00:31]} 28. Qxe6 {[%clk 0:02:31.3]} 28... fxe6 {[%clk
0:00:32.9]} 29. Rd1 {[%clk 0:02:30.9]} 29... Rac8 {[%clk 0:00:30.2]} 30. Bb6
{[%clk 0:02:25.9]} 30... Rxd1+ {[%clk 0:00:26.5]} 31. Rxd1 {[%clk 0:02:27.8]}
31... Rc3 {[%clk 0:00:27]} 32. Bxa5 {[%clk 0:02:29.2]} 32... Rxb3 {[%clk
0:00:27.8]} 33. Bc7 {[%clk 0:02:30.5]} 33... Ra3 {[%clk 0:00:27.5]} 34. a5
{[%clk 0:02:31.3]} 34... Rb3 {[%clk 0:00:27.1]} 35. a6 {[%clk 0:02:29.3]} 35...
bxa6 {[%clk 0:00:26.3]} 36. bxa6 {[%clk 0:02:31.2]} 36... Ra3 {[%clk 0:00:26.8]}
37. Rd6 {[%clk 0:02:32.4]} 37... Kf7 {[%clk 0:00:22.6]} 38. Rd7+ {[%clk
0:02:24.5]} 38... Kg8 {[%clk 0:00:23.9]} 39. Rd6 {[%clk 0:01:42.3]} 39... Kf7
{[%clk 0:00:24.9]} 40. Rc6 {[%clk 0:01:43.9]} 40... Bd4+ {[%clk 0:00:23]} 41.
Kf1 {[%clk 0:01:44.9]} 41... Ra2 {[%clk 0:00:23.5]} 42. Bg3 {[%clk 0:01:42.2]}
42... Ke7 {[%clk 0:00:24]} 43. h4 {[%clk 0:01:33.7]} 43... Kd7 {[%clk
0:00:24.4]} 44. Rd6+ {[%clk 0:01:34.2]} 44... Ke7 {[%clk 0:00:23.1]} 45. Rxd4
{[%clk 0:01:36.1]} 45... Rxa6 {[%clk 0:00:24.3]} 46. Ke2 {[%clk 0:01:32.9]}
46... Ra2+ {[%clk 0:00:25.1]} 47. Rd2 {[%clk 0:01:34.5]} 47... Ra1 {[%clk
0:00:24.7]} 48. Be5 {[%clk 0:01:33.7]} 48... Rg1 {[%clk 0:00:24.9]} 49. Kf2
{[%clk 0:01:35.1]} 49... Rh1 {[%clk 0:00:25]} 50. Kg3 {[%clk 0:01:33.9]} 50...
Rb1 {[%clk 0:00:25]} 51. Rb2 {[%clk 0:01:34.7]} 51... Rd1 {[%clk 0:00:25.1]} 52.
Rb7+ {[%clk 0:01:34.7]} 52... Kf8 {[%clk 0:00:26]} 53. Kf4 {[%clk 0:01:36.1]}
53... Rg1 {[%clk 0:00:26]} 54. g3 {[%clk 0:01:37]} 54... Rc1 {[%clk 0:00:23.5]}
55. Kg5 {[%clk 0:01:37.9]} 55... Rc5 {[%clk 0:00:24.7]} 56. Kf6 {[%clk
0:01:39.1]} 56... Ke8 {[%clk 0:00:24.1]} 57. Kxe6 {[%clk 0:01:39.1]} 1-0

[Event "*** Titled Tuesday Blitz"]
[Site "Chess.com"]
[Date "2019.05.07"]
[Round "4"]
[White "Caisachess"]
[Black "sergeikim"]
[Result "0-1"]
[WhiteElo "2342"]
[BlackElo "2478"]
[TimeControl "180+2"]
[EndTime "13:56:21 PDT"]
[Termination "sergeikim won by checkmate"]

1. e4 {[%clk 0:03:01.9]} 1... e5 {[%clk 0:02:58.9]} 2. Nf3 {[%clk 0:03:02.2]}
2... Nc6 {[%clk 0:02:59.7]} 3. Bc4 {[%clk 0:03:03.7]} 3... Bc5 {[%clk
0:02:59.3]} 4. c3 {[%clk 0:03:03.5]} 4... Nf6 {[%clk 0:02:59.9]} 5. d3 {[%clk
0:03:04.7]} 5... d6 {[%clk 0:03:00.8]} 6. a4 {[%clk 0:03:04.4]} 6... a6 {[%clk
0:03:01.7]} 7. Nbd2 {[%clk 0:03:03.4]} 7... Ba7 {[%clk 0:03:02.2]} 8. Nf1 {[%clk
0:03:02.8]} 8... O-O {[%clk 0:03:00.5]} 9. Ng3 {[%clk 0:03:02.8]} 9... Be6
{[%clk 0:03:01.1]} 10. Bxe6 {[%clk 0:03:02.6]} 10... fxe6 {[%clk 0:03:01.4]} 11.
O-O {[%clk 0:03:04.2]} 11... Qe8 {[%clk 0:02:58.9]} 12. b4 {[%clk 0:03:05.1]}
12... Nh5 {[%clk 0:02:47.3]} 13. Be3 {[%clk 0:02:59.6]} 13... Nf4 {[%clk
0:02:45.4]} 14. a5 {[%clk 0:02:54.2]} 14... Qg6 {[%clk 0:02:39]} 15. Bxa7 {[%clk
0:02:39.6]} 15... Rxa7 {[%clk 0:02:38.4]} 16. Re1 {[%clk 0:02:40.1]} 16... Raa8
{[%clk 0:02:35.1]} 17. Re3 {[%clk 0:02:36.8]} 17... Qf6 {[%clk 0:02:22.1]} 18.
Ra2 {[%clk 0:02:27.3]} 18... Ne7 {[%clk 0:02:17.7]} 19. d4 {[%clk 0:02:24.7]}
19... Neg6 {[%clk 0:02:17.6]} 20. dxe5 {[%clk 0:02:22.7]} 20... Nxe5 {[%clk
0:02:15.9]} 21. Nxe5 {[%clk 0:02:22.5]} 21... Qxe5 {[%clk 0:02:16]} 22. Qd4
{[%clk 0:02:20.9]} 22... Qg5 {[%clk 0:02:14.9]} 23. e5 {[%clk 0:02:16.4]} 23...
d5 {[%clk 0:02:14.6]} 24. Rc2 {[%clk 0:02:02.7]} 24... h5 {[%clk 0:02:13.2]} 25.
f3 {[%clk 0:01:51.1]} 25... h4 {[%clk 0:02:05.7]} 26. Nf1 {[%clk 0:01:51.7]}
26... Rf5 {[%clk 0:01:52.8]} 27. Re1 {[%clk 0:01:47]} 27... Raf8 {[%clk
0:01:49.6]} 28. Kh1 {[%clk 0:01:26.6]} 28... Ng6 {[%clk 0:01:46]} 29. Rce2
{[%clk 0:01:14.9]} 29... h3 {[%clk 0:01:45]} 30. gxh3 {[%clk 0:01:03.4]} 30...
Rxf3 {[%clk 0:01:44.5]} 31. Ng3 {[%clk 0:01:02.3]} 31... Nf4 {[%clk 0:01:37.1]}
32. Re3 {[%clk 0:00:58.8]} 32... Nxh3 {[%clk 0:01:35.2]} 33. Rxf3 {[%clk
0:00:58.7]} 33... Rxf3 {[%clk 0:01:34.6]} 34. c4 {[%clk 0:00:52.7]} 34... Rf4
{[%clk 0:01:25.6]} 35. Qa7 {[%clk 0:00:42.6]} 35... Rxc4 {[%clk 0:01:13.8]} 36.
Qxb7 {[%clk 0:00:42.4]} 36... Nf2+ {[%clk 0:01:11.1]} 37. Kg2 {[%clk 0:00:42.8]}
37... Ng4 {[%clk 0:01:07.5]} 38. Qc8+ {[%clk 0:00:43.1]} 38... Kh7 {[%clk
0:01:07.5]} 39. Qxe6 {[%clk 0:00:41.8]} 39... Rc2+ {[%clk 0:01:07.2]} 40. Re2
{[%clk 0:00:35.4]} 40... Ne3+ {[%clk 0:00:55.5]} 41. Kf2 {[%clk 0:00:29.6]}
41... Qf4+ {[%clk 0:00:54.3]} 42. Ke1 {[%clk 0:00:26.2]} 42... Rc1+ {[%clk
0:00:52.8]} 43. Kd2 {[%clk 0:00:27.4]} 43... Nf1+ {[%clk 0:00:50.5]} 44. Kd3
{[%clk 0:00:27.3]} 44... Qc4# {[%clk 0:00:49.5]} 0-1

[Event "*** Titled Tuesday Blitz"]
[Site "Chess.com"]
[Date "2019.05.07"]
[Round "4"]
[White "slowdumbb"]
[Black "Alexander_Donchenko"]
[Result "0-1"]
[WhiteElo "2442"]
[BlackElo "2789"]
[TimeControl "180+2"]
[EndTime "13:56:34 PDT"]
[Termination "Alexander_Donchenko won by resignation"]

1. g3 {[%clk 0:02:59.8]} 1... c5 {[%clk 0:03:00.2]} 2. Bg2 {[%clk 0:03:01.7]}
2... Nc6 {[%clk 0:03:01.8]} 3. Nf3 {[%clk 0:02:56.5]} 3... g6 {[%clk 0:03:03.2]}
4. O-O {[%clk 0:02:58]} 4... Bg7 {[%clk 0:03:04.7]} 5. d3 {[%clk 0:02:59.6]}
5... e5 {[%clk 0:03:05]} 6. c4 {[%clk 0:03:01]} 6... Nge7 {[%clk 0:03:06]} 7.
Nc3 {[%clk 0:03:02.5]} 7... d6 {[%clk 0:03:07.2]} 8. Rb1 {[%clk 0:03:03.2]} 8...
O-O {[%clk 0:03:06.7]} 9. a3 {[%clk 0:03:04.6]} 9... a5 {[%clk 0:03:08]} 10. e4
{[%clk 0:03:03.8]} 10... h6 {[%clk 0:03:08.5]} 11. Nd5 {[%clk 0:03:03.4]} 11...
Nxd5 {[%clk 0:03:08.4]} 12. exd5 {[%clk 0:03:05.3]} 12... Ne7 {[%clk 0:03:08]}
13. b4 {[%clk 0:03:06]} 13... axb4 {[%clk 0:03:08.2]} 14. axb4 {[%clk
0:03:07.9]} 14... b6 {[%clk 0:03:09.4]} 15. Bd2 {[%clk 0:03:01.2]} 15... f5
{[%clk 0:02:56.4]} 16. Qc2 {[%clk 0:03:01.9]} 16... Kh7 {[%clk 0:02:51.8]} 17.
Bc3 {[%clk 0:02:55.5]} 17... Ng8 {[%clk 0:02:35.9]} 18. Ra1 {[%clk 0:02:48.9]}
18... Bd7 {[%clk 0:02:23.3]} 19. Rxa8 {[%clk 0:02:46.8]} 19... Qxa8 {[%clk
0:02:25.2]} 20. Ra1 {[%clk 0:02:47.3]} 20... Qb7 {[%clk 0:02:26.7]} 21. b5
{[%clk 0:01:53.9]} 21... Ra8 {[%clk 0:02:22.3]} 22. Qb2 {[%clk 0:01:54]} 22...
Ra7 {[%clk 0:02:19.5]} 23. Nd2 {[%clk 0:01:53.1]} 23... Bc8 {[%clk 0:02:11.6]}
24. f4 {[%clk 0:01:48.2]} 24... exf4 {[%clk 0:01:21.7]} 25. Bxg7 {[%clk
0:01:33.5]} 25... Rxa1+ {[%clk 0:01:14.8]} 26. Qxa1 {[%clk 0:01:31.4]} 26...
Qxg7 {[%clk 0:01:16.7]} 27. Qa8 {[%clk 0:00:23.5]} 27... Qd4+ {[%clk 0:01:10.8]}
28. Kh1 {[%clk 0:00:23.8]} 28... Qxd3 {[%clk 0:01:09.9]} 29. Nf1 {[%clk
0:00:15.3]} 29... f3 {[%clk 0:01:07.4]} 30. Bh3 {[%clk 0:00:08.9]} 30... Bd7
{[%clk 0:00:31.1]} 31. Qd8 {[%clk 0:00:09.5]} 31... g5 {[%clk 0:00:20.4]} 32.
Qxd7+ {[%clk 0:00:10.4]} 32... Kg6 {[%clk 0:00:21.9]} 33. Qe8+ {[%clk
0:00:09.1]} 33... Kg7 {[%clk 0:00:21.6]} 34. Qd7+ {[%clk 0:00:10.1]} 34... Kg6
{[%clk 0:00:22.7]} 35. Qxd6+ {[%clk 0:00:11.1]} 35... Nf6 {[%clk 0:00:23.7]} 36.
Qe5 {[%clk 0:00:07.4]} 36... g4 {[%clk 0:00:23.8]} 37. Qe3 {[%clk 0:00:05.5]}
37... Qxc4 {[%clk 0:00:23.3]} 38. d6 {[%clk 0:00:06.1]} 38... Qxb5 {[%clk
0:00:20.4]} 39. Bg2 {[%clk 0:00:05.2]} 39... fxg2+ {[%clk 0:00:20.3]} 40. Kxg2
{[%clk 0:00:07.1]} 40... Qc6+ {[%clk 0:00:21.5]} 41. Kg1 {[%clk 0:00:08.7]}
41... Qxd6 {[%clk 0:00:22.4]} 42. Nd2 {[%clk 0:00:09.5]} 42... Qd4 {[%clk
0:00:23.3]} 43. Qxd4 {[%clk 0:00:10.5]} 43... cxd4 {[%clk 0:00:25.2]} 44. Kf1
{[%clk 0:00:12.2]} 44... Ne4 {[%clk 0:00:26.3]} 45. Nb3 {[%clk 0:00:13.7]} 45...
d3 {[%clk 0:00:27.2]} 0-1

[Event "*** Titled Tuesday Blitz"]
[Site "Chess.com"]
[Date "2019.05.07"]
[Round "4"]
[White "el-reptiliano"]
[Black "GuerrieroFromLevant"]
[Result "0-1"]
[WhiteElo "2165"]
[BlackElo "2276"]
[TimeControl "180+2"]
[EndTime "13:56:34 PDT"]
[Termination "GuerrieroFromLevant won by resignation"]

1. Nf3 {[%clk 0:03:01.9]} 1... d5 {[%clk 0:03:00.2]} 2. e3 {[%clk 0:03:01.1]}
2... Nf6 {[%clk 0:03:00.1]} 3. c4 {[%clk 0:02:59.2]} 3... e6 {[%clk 0:03:00.6]}
4. b3 {[%clk 0:02:56.2]} 4... c5 {[%clk 0:02:57.7]} 5. Bb2 {[%clk 0:02:53.2]}
5... Nc6 {[%clk 0:02:58]} 6. cxd5 {[%clk 0:02:51.6]} 6... exd5 {[%clk
0:02:59.1]} 7. d4 {[%clk 0:02:46.7]} 7... Be7 {[%clk 0:02:52.8]} 8. dxc5 {[%clk
0:02:41.7]} 8... Bxc5 {[%clk 0:02:51.1]} 9. Be2 {[%clk 0:02:40.8]} 9... O-O
{[%clk 0:02:50.8]} 10. O-O {[%clk 0:02:40.9]} 10... Bf5 {[%clk 0:02:42.1]} 11.
Nc3 {[%clk 0:02:24.5]} 11... a6 {[%clk 0:02:17.1]} 12. Na4 {[%clk 0:01:26.1]}
12... Ba7 {[%clk 0:02:16.6]} 13. Nd4 {[%clk 0:01:25.7]} 13... Be4 {[%clk
0:02:07.2]} 14. Nxc6 {[%clk 0:01:18.9]} 14... bxc6 {[%clk 0:02:07.4]} 15. Ba3
{[%clk 0:01:19.8]} 15... Re8 {[%clk 0:02:06.6]} 16. Bc5 {[%clk 0:01:13]} 16...
Bxc5 {[%clk 0:02:02.1]} 17. Nxc5 {[%clk 0:01:14.9]} 17... Qb6 {[%clk 0:02:02.5]}
18. Qd4 {[%clk 0:01:14.3]} 18... a5 {[%clk 0:01:57.3]} 19. Rac1 {[%clk
0:01:01.9]} 19... Qb4 {[%clk 0:01:55.2]} 20. Rfd1 {[%clk 0:00:53.3]} 20... Reb8
{[%clk 0:01:42.6]} 21. Qxb4 {[%clk 0:00:22.8]} 21... axb4 {[%clk 0:01:42.7]} 22.
Na4 {[%clk 0:00:20.2]} 22... Rd8 {[%clk 0:01:30.2]} 23. f3 {[%clk 0:00:17.7]}
23... Bf5 {[%clk 0:01:28]} 24. Rxc6 {[%clk 0:00:18.4]} 24... Bd7 {[%clk
0:01:29.5]} 25. Rc5 {[%clk 0:00:18.2]} 25... Bxa4 {[%clk 0:01:28.9]} 26. bxa4
{[%clk 0:00:20.1]} 26... Rxa4 {[%clk 0:01:29.6]} 27. Rd2 {[%clk 0:00:20.5]}
27... Ra3 {[%clk 0:01:29.5]} 28. e4 {[%clk 0:00:21.3]} 28... d4 {[%clk
0:01:28.9]} 29. Bc4 {[%clk 0:00:22]} 29... d3 {[%clk 0:01:29.8]} 30. Rc7 {[%clk
0:00:22.5]} 30... Rc3 {[%clk 0:01:25.5]} 31. Bxf7+ {[%clk 0:00:21.3]} 31... Kf8
{[%clk 0:01:26.8]} 32. Bc4 {[%clk 0:00:21.8]} 32... Rd4 {[%clk 0:01:27.6]} 33.
Rc8+ {[%clk 0:00:21.3]} 33... Ke7 {[%clk 0:01:27.7]} 34. Ba6 {[%clk 0:00:22.7]}
34... Ra3 {[%clk 0:01:20.5]} 35. Bc4 {[%clk 0:00:22.8]} 35... Kd7 {[%clk
0:01:18.4]} 36. Rc5 {[%clk 0:00:22.7]} 36... Rc3 {[%clk 0:01:19.1]} 37. Ra5
{[%clk 0:00:13.7]} 37... Rcxc4 {[%clk 0:01:17.1]} 38. Ra7+ {[%clk 0:00:15.2]}
38... Rc7 {[%clk 0:01:17.7]} 39. Ra4 {[%clk 0:00:15.1]} 39... Rc2 {[%clk
0:01:15.4]} 40. Rd1 {[%clk 0:00:15.5]} 40... d2 {[%clk 0:01:16.4]} 41. Kf2
{[%clk 0:00:17]} 41... Rc1 {[%clk 0:01:17.5]} 42. Ke2 {[%clk 0:00:18.3]} 42...
Rxd1 {[%clk 0:01:18.3]} 43. Kxd1 {[%clk 0:00:20.2]} 43... Kc6 {[%clk 0:01:19.9]}
44. Ra8 {[%clk 0:00:20.8]} 44... Nd7 {[%clk 0:01:21]} 45. Rc8+ {[%clk
0:00:21.7]} 45... Kb5 {[%clk 0:01:21.7]} 46. Rc2 {[%clk 0:00:23.6]} 46... Ne5
{[%clk 0:01:20.6]} 47. Rxd2 {[%clk 0:00:24.3]} 47... Rxd2+ {[%clk 0:01:22]} 48.
Kxd2 {[%clk 0:00:26.2]} 48... Ka4 {[%clk 0:01:23.7]} 49. Kc2 {[%clk 0:00:27.3]}
49... Ka3 {[%clk 0:01:25.3]} 50. Kb1 {[%clk 0:00:28.4]} 50... Nd3 {[%clk
0:01:26.5]} 51. g3 {[%clk 0:00:28.3]} 51... g5 {[%clk 0:01:25.8]} 52. h3 {[%clk
0:00:27.2]} 52... h5 {[%clk 0:01:26.6]} 53. Ka1 {[%clk 0:00:25.9]} 53... b3
{[%clk 0:01:26.4]} 54. axb3 {[%clk 0:00:25.6]} 54... Kxb3 {[%clk 0:01:28.3]} 55.
h4 {[%clk 0:00:26]} 55... gxh4 {[%clk 0:01:28]} 56. gxh4 {[%clk 0:00:27.5]}
56... Kc3 {[%clk 0:01:29.5]} 57. Kb1 {[%clk 0:00:28.9]} 57... Kd2 {[%clk
0:01:30.1]} 58. f4 {[%clk 0:00:26.7]} 58... Nxf4 {[%clk 0:01:26]} 59. e5 {[%clk
0:00:27.8]} 59... Ke3 {[%clk 0:01:23.1]} 60. Kc1 {[%clk 0:00:28.4]} 0-1

[Event "*** Titled Tuesday Blitz"]
[Site "Chess.com"]
[Date "2019.05.07"]
[Round "4"]
[White "chessking2151"]
[Black "Manukyan_Artak"]
[Result "1-0"]
[WhiteElo "2591"]
[BlackElo "2416"]
[TimeControl "180+2"]
[EndTime "13:56:38 PDT"]
[Termination "chessking2151 won by resignation"]

1. e4 {[%clk 0:03:01.8]} 1... c6 {[%clk 0:03:00.5]} 2. d4 {[%clk 0:02:38.7]}
2... d5 {[%clk 0:03:02.4]} 3. Nc3 {[%clk 0:02:36.5]} 3... dxe4 {[%clk
0:03:03.1]} 4. Nxe4 {[%clk 0:02:37.2]} 4... Nf6 {[%clk 0:03:05]} 5. Nxf6+ {[%clk
0:02:38.2]} 5... exf6 {[%clk 0:03:06.9]} 6. c3 {[%clk 0:02:39.3]} 6... Bd6
{[%clk 0:03:08.4]} 7. Bd3 {[%clk 0:02:40.6]} 7... O-O {[%clk 0:03:10.2]} 8. Ne2
{[%clk 0:02:42]} 8... Qc7 {[%clk 0:03:11]} 9. Qc2 {[%clk 0:02:35.2]} 9... h6
{[%clk 0:03:11.5]} 10. Be3 {[%clk 0:02:29.4]} 10... c5 {[%clk 0:03:12]} 11.
O-O-O {[%clk 0:01:59.6]} 11... c4 {[%clk 0:03:09.8]} 12. Be4 {[%clk 0:02:00.1]}
12... Nc6 {[%clk 0:03:09.2]} 13. Ng3 {[%clk 0:01:55.6]} 13... b5 {[%clk
0:03:08.2]} 14. Nh5 {[%clk 0:01:42.5]} 14... a5 {[%clk 0:02:59.3]} 15. Rde1
{[%clk 0:01:22.2]} 15... Bg4 {[%clk 0:02:53.6]} 16. Ng3 {[%clk 0:00:55.1]} 16...
b4 {[%clk 0:02:42.6]} 17. h3 {[%clk 0:00:39.8]} 17... Bd7 {[%clk 0:02:42.5]} 18.
Nf5 {[%clk 0:00:32.5]} 18... Bxf5 {[%clk 0:02:41.1]} 19. Bxf5 {[%clk 0:00:33.6]}
19... bxc3 {[%clk 0:02:42.2]} 20. bxc3 {[%clk 0:00:34.7]} 20... Ba3+ {[%clk
0:02:38.6]} 21. Kd2 {[%clk 0:00:35.7]} 21... Rab8 {[%clk 0:02:37.5]} 22. Rb1
{[%clk 0:00:34.5]} 22... Ne7 {[%clk 0:02:09.8]} 23. Be4 {[%clk 0:00:34.6]} 23...
Qd8 {[%clk 0:02:07.3]} 24. Rxb8 {[%clk 0:00:34.9]} 24... Qxb8 {[%clk 0:02:04.5]}
25. Rb1 {[%clk 0:00:36.5]} 25... Qd8 {[%clk 0:01:55.4]} 26. Qa4 {[%clk
0:00:37.2]} 26... Bd6 {[%clk 0:01:53.8]} 27. g4 {[%clk 0:00:38]} 27... Ng6
{[%clk 0:01:51.6]} 28. Qxc4 {[%clk 0:00:38.2]} 28... Nf4 {[%clk 0:01:47.6]} 29.
Rb5 {[%clk 0:00:36.8]} 29... Nxh3 {[%clk 0:01:44.6]} 30. Qd5 {[%clk 0:00:21.9]}
30... Bf4 {[%clk 0:01:31.8]} 31. Qxd8 {[%clk 0:00:18]} 31... Rxd8 {[%clk
0:01:18.4]} 32. Ke2 {[%clk 0:00:19]} 32... Ng5 {[%clk 0:01:10]} 33. Bxf4 {[%clk
0:00:16.7]} 33... Nxe4 {[%clk 0:01:10.9]} 34. Bd2 {[%clk 0:00:14.7]} 34... a4
{[%clk 0:01:06.9]} 35. f3 {[%clk 0:00:14.8]} 35... Nd6 {[%clk 0:01:04.3]} 36.
Rb4 {[%clk 0:00:15.6]} 36... f5 {[%clk 0:01:05.4]} 37. c4 {[%clk 0:00:15.5]}
37... fxg4 {[%clk 0:01:06.3]} 38. fxg4 {[%clk 0:00:17.4]} 38... Ne4 {[%clk
0:01:07]} 39. Be3 {[%clk 0:00:17.4]} 39... a3 {[%clk 0:01:00]} 40. Kd3 {[%clk
0:00:17.9]} 40... Nf6 {[%clk 0:01:00.8]} 41. g5 {[%clk 0:00:16.5]} 41... hxg5
{[%clk 0:01:01.1]} 42. Bxg5 {[%clk 0:00:18.4]} 42... Re8 {[%clk 0:01:01.1]} 43.
Bxf6 {[%clk 0:00:15.6]} 43... gxf6 {[%clk 0:01:02.4]} 44. d5 {[%clk 0:00:17.2]}
44... f5 {[%clk 0:01:03.5]} 45. d6 {[%clk 0:00:16.1]} 45... f4 {[%clk 0:01:04]}
46. c5 {[%clk 0:00:15.8]} 46... Re3+ {[%clk 0:00:57.5]} 47. Kd2 {[%clk
0:00:16.6]} 47... Re5 {[%clk 0:00:58.3]} 48. Rd4 {[%clk 0:00:16.2]} 48... f3
{[%clk 0:00:57.6]} 49. d7 {[%clk 0:00:16.3]} 49... Re2+ {[%clk 0:00:58.8]} 50.
Kd3 {[%clk 0:00:17.3]} 50... Kg7 {[%clk 0:00:56.6]} 51. d8=Q {[%clk 0:00:18.4]}
51... Re6 {[%clk 0:00:57.6]} 52. Qg5+ {[%clk 0:00:19.3]} 52... Rg6 {[%clk
0:00:57.7]} 53. Qe5+ {[%clk 0:00:20.5]} 53... Rf6 {[%clk 0:00:58.6]} 54. Rg4+
{[%clk 0:00:21.7]} 54... Kh7 {[%clk 0:00:59.1]} 55. Qxf6 {[%clk 0:00:22.4]} 1-0

[Event "*** Titled Tuesday Blitz"]
[Site "Chess.com"]
[Date "2019.05.07"]
[Round "4"]
[White "Berardino"]
[Black "Witik"]
[Result "1-0"]
[WhiteElo "2519"]
[BlackElo "2594"]
[TimeControl "180+2"]
[EndTime "13:56:43 PDT"]
[Termination "Berardino won by resignation"]

1. e4 {[%clk 0:03:01.9]} 1... c6 {[%clk 0:02:59.9]} 2. d4 {[%clk 0:03:02.6]}
2... d5 {[%clk 0:03:00.8]} 3. exd5 {[%clk 0:02:58.8]} 3... cxd5 {[%clk
0:03:01.6]} 4. c4 {[%clk 0:03:00.3]} 4... Nf6 {[%clk 0:03:01.8]} 5. Nc3 {[%clk
0:03:01.9]} 5... e6 {[%clk 0:03:02.8]} 6. Nf3 {[%clk 0:03:02.4]} 6... Be7 {[%clk
0:03:03.2]} 7. cxd5 {[%clk 0:03:02.5]} 7... Nxd5 {[%clk 0:03:03.9]} 8. Bd3
{[%clk 0:03:04]} 8... Nc6 {[%clk 0:03:05]} 9. O-O {[%clk 0:03:04.5]} 9... Nf6
{[%clk 0:03:06.1]} 10. a3 {[%clk 0:02:56]} 10... O-O {[%clk 0:03:06.4]} 11. Re1
{[%clk 0:02:55.1]} 11... b6 {[%clk 0:03:07]} 12. Bc2 {[%clk 0:02:56.2]} 12...
Ba6 {[%clk 0:03:06.4]} 13. Bg5 {[%clk 0:02:46.2]} 13... Re8 {[%clk 0:02:51.4]}
14. Qd2 {[%clk 0:02:42.7]} 14... Rc8 {[%clk 0:02:19.8]} 15. Rad1 {[%clk
0:02:43]} 15... Nd5 {[%clk 0:02:03.3]} 16. Ne4 {[%clk 0:02:03.4]} 16... g6
{[%clk 0:01:36.9]} 17. Ba4 {[%clk 0:01:43.3]} 17... Bxg5 {[%clk 0:01:16.9]} 18.
Nexg5 {[%clk 0:01:36.2]} 18... Re7 {[%clk 0:01:03.2]} 19. Ne5 {[%clk 0:01:16.3]}
19... Nxe5 {[%clk 0:01:03.1]} 20. dxe5 {[%clk 0:01:16.6]} 20... Rec7 {[%clk
0:00:47.6]} 21. Ne4 {[%clk 0:01:10.4]} 21... Kg7 {[%clk 0:00:48.1]} 22. Nd6
{[%clk 0:00:42]} 22... Rb8 {[%clk 0:00:47.6]} 23. Ne8+ {[%clk 0:00:33.5]} 23...
Qxe8 {[%clk 0:00:40.4]} 24. Bxe8 {[%clk 0:00:35.4]} 24... Rxe8 {[%clk
0:00:41.9]} 25. Rc1 {[%clk 0:00:35.9]} 25... Rd7 {[%clk 0:00:40.6]} 26. h4
{[%clk 0:00:35.6]} 26... h6 {[%clk 0:00:40.6]} 27. Re4 {[%clk 0:00:21]} 27...
Red8 {[%clk 0:00:40.3]} 28. Rd4 {[%clk 0:00:17.5]} 28... Bb7 {[%clk 0:00:34.7]}
29. Qd1 {[%clk 0:00:17.1]} 29... a6 {[%clk 0:00:28.7]} 30. Qf3 {[%clk
0:00:17.7]} 30... a5 {[%clk 0:00:19.5]} 31. Qg3 {[%clk 0:00:18.5]} 31... Ne7
{[%clk 0:00:18.5]} 32. Rxd7 {[%clk 0:00:18.5]} 32... Rxd7 {[%clk 0:00:20.4]} 33.
Qg4 {[%clk 0:00:16.8]} 33... Bd5 {[%clk 0:00:15.8]} 34. Qf4 {[%clk 0:00:17.4]}
34... h5 {[%clk 0:00:16.3]} 35. Qf6+ {[%clk 0:00:16.7]} 35... Kg8 {[%clk
0:00:15]} 36. f3 {[%clk 0:00:16.2]} 36... Bc6 {[%clk 0:00:15.9]} 37. g4 {[%clk
0:00:15.1]} 37... Nd5 {[%clk 0:00:16.6]} 38. Qg5 {[%clk 0:00:14.7]} 38... Bb7
{[%clk 0:00:15.8]} 39. gxh5 {[%clk 0:00:15.5]} 39... Kg7 {[%clk 0:00:16.5]} 40.
hxg6 {[%clk 0:00:16]} 40... fxg6 {[%clk 0:00:18]} 41. h5 {[%clk 0:00:17.1]}
41... Ne7 {[%clk 0:00:19.6]} 42. Qf6+ {[%clk 0:00:18.3]} 42... Kh7 {[%clk
0:00:20.8]} 43. hxg6+ {[%clk 0:00:17.9]} 43... Nxg6 {[%clk 0:00:22.1]} 44. Kf2
{[%clk 0:00:19.2]} 1-0